[Event "Blixt-SM 2021"]
[Site "Elite Hotel Marina Plaza, Kungstorget 6, Helsingborg, Sweden"]
[Date "2021.11.14"]
[Round "2.8"]
[White "Wellevit, Tomas"]
[Black "Elsner, Yair"]
[Result "0-1"]
[TimeControl "3 minutes + 2 seconds per move."]
[WhiteFideId "1731963"]
[BlackFideId "2838230"]
[WhiteElo "2113"]
[BlackElo "1629"]

1. e4 {[%clk 00:03:03]} {[%emt 00:12:22]} c5 {[%clk 00:03:03]} {[%emt
00:00:01]} 2. Nf3 {[%clk 00:03:05]} Nc6 {[%clk 00:03:04]} {[%emt 00:00:01]} 3.
Bc4 {[%clk 00:03:05]} {[%emt 00:00:02]} Nf6 {[%clk 00:03:03]} {[%emt 00:00:02]}
4. d3 {[%clk 00:03:01]} {[%emt 00:00:06]} e6 {[%clk 00:03:03]} {[%emt
00:00:02]} 5. O-O {[%clk 00:03:02]} {[%emt 00:00:02]} d5 {[%clk 00:03:02]}
{[%emt 00:00:03]} 6. exd5 {[%clk 00:03:03]} {[%emt 00:00:01]} exd5 {[%clk
00:03:03]} {[%emt 00:00:01]} 7. Bb3 {[%clk 00:03:04]} Be7 {[%clk 00:02:55]}
{[%emt 00:00:09]} 8. h3 {[%clk 00:03:05]} O-O {[%clk 00:02:55]} {[%emt
00:00:03]} 9. Nc3 {[%clk 00:03:06]} a6 {[%clk 00:02:37]} {[%emt 00:00:20]} 10.
a4 {[%clk 00:03:06]} {[%emt 00:00:01]} h6 {[%clk 00:02:15]} {[%emt 00:00:24]}
11. Re1 {[%clk 00:03:04]} {[%emt 00:00:04]} Be6 {[%clk 00:02:15]} {[%emt
00:00:02]} 12. Ne2 {[%clk 00:03:03]} {[%emt 00:00:03]} Qc7 {[%clk 00:02:00]}
{[%emt 00:00:17]} 13. Nf4 {[%clk 00:03:02]} {[%emt 00:00:03]} Qd7 {[%clk
00:01:42]} {[%emt 00:00:20]} 14. c3 {[%clk 00:02:20]} {[%emt 00:00:44]} Bf5
{[%clk 00:01:41]} {[%emt 00:00:03]} 15. Bc2 {[%clk 00:02:19]} {[%emt 00:00:03]}
Rfe8 {[%clk 00:01:34]} {[%emt 00:00:09]} 16. Rb1 {[%clk 00:01:36]} {[%emt
00:00:46]} d4 {[%clk 00:01:06]} {[%emt 00:00:29]} 17. Bb3 {[%clk 00:01:33]}
{[%emt 00:00:05]} b5 {[%clk 00:00:49]} {[%emt 00:00:19]} 18. cxd4 {[%clk
00:01:25]} {[%emt 00:00:10]} Nxd4 {[%clk 00:00:48]} {[%emt 00:00:02]} 19. Nxd4
{[%clk 00:01:15]} {[%emt 00:00:12]} Qxd4 {[%clk 00:00:48]} {[%emt 00:00:02]} 20.
Be3 {[%clk 00:01:16]} {[%emt 00:00:01]} Qd6 {[%clk 00:00:40]} {[%emt 00:00:11]}
21. Rc1 {[%clk 00:01:08]} {[%emt 00:00:09]} Rac8 {[%clk 00:00:33]} {[%emt
00:00:09]} 22. axb5 {[%clk 00:01:08]} {[%emt 00:00:03]} axb5 {[%clk 00:00:33]}
23. Nh5 {[%clk 00:00:49]} {[%emt 00:00:21]} Nxh5 {[%clk 00:00:15]} {[%emt
00:00:21]} 24. Qxh5 {[%clk 00:00:50]} Bg6 {[%clk 00:00:15]} {[%emt 00:00:01]}
25. Qg4 {[%clk 00:00:45]} {[%emt 00:00:07]} Qxd3 {[%clk 00:00:11]} {[%emt
00:00:08]} 26. Rc3 {[%clk 00:00:45]} {[%emt 00:00:01]} Qf5 {[%clk 00:00:10]}
{[%emt 00:00:02]} 27. Qg3 {[%clk 00:00:37]} {[%emt 00:00:10]} c4 {[%clk
00:00:11]} {[%emt 00:00:01]} 28. Bc2 {[%clk 00:00:38]} {[%emt 00:00:02]} Qf6
{[%clk 00:00:07]} {[%emt 00:00:06]} 29. Bxg6 {[%clk 00:00:28]} {[%emt
00:00:11]} Qxg6 {[%clk 00:00:08]} 30. Bd4 {[%clk 00:00:20]} {[%emt 00:00:10]}
Bd6 {[%clk 00:00:07]} {[%emt 00:00:04]} 31. Rxe8+ {[%clk 00:00:16]} {[%emt
00:00:06]} Rxe8 {[%clk 00:00:07]} 32. f4 {[%clk 00:00:04]} {[%emt 00:00:14]}
Qxg3 {[%clk 00:00:08]} {[%emt 00:00:02]} 33. Rxg3 {[%clk 00:00:05]} {[%emt
00:00:02]} Bxf4 {[%clk 00:00:08]} {[%emt 00:00:01]} 34. Rxg7+ {[%clk 00:00:06]}
{[%emt 00:00:01]} Kf8 {[%clk 00:00:09]} {[%emt 00:00:02]} 35. Rg4 {[%clk
00:00:07]} {[%emt 00:00:01]} Bd6 {[%clk 00:00:08]} {[%emt 00:00:03]} 36. Kf1
{[%clk 00:00:06]} {[%emt 00:00:02]} Re6 {[%clk 00:00:08]} {[%emt 00:00:02]} 37.
Bg7+ {[%clk 00:00:04]} {[%emt 00:00:04]} Ke7 {[%clk 00:00:09]} {[%emt
00:00:01]} 38. Bd4 {[%clk 00:00:06]} Be5 {[%clk 00:00:09]} {[%emt 00:00:02]} 39.
Bc5+ {[%clk 00:00:07]} {[%emt 00:00:02]} Kf6 {[%clk 00:00:10]} 40. b3 {[%clk
00:00:05]} {[%emt 00:00:04]} c3 {[%clk 00:00:11]} {[%emt 00:00:01]} 41. Rg3
{[%clk 00:00:05]} {[%emt 00:00:02]} Rc6 {[%clk 00:00:09]} {[%emt 00:00:03]} 42.
Rf3+ {[%clk 00:00:04]} {[%emt 00:00:03]} Ke6 {[%clk 00:00:11]} 43. Be3 {[%clk
00:00:05]} c2 {[%clk 00:00:12]} {[%emt 00:00:01]} 44. Bc1 {[%clk 00:00:07]} Bb2
{[%clk 00:00:12]} {[%emt 00:00:02]} 45. Re3+ {[%clk 00:00:07]} {[%emt
00:00:02]} Kd5 {[%clk 00:00:13]} {[%emt 00:00:01]} 46. Bxb2 {[%clk 00:00:08]}
{[%emt 00:00:01]} c1=Q+ 47. Bxc1 Rxc1+ {[%emt 00:00:01]} 48. Kf2 {[%emt
00:00:02]} Kd4 {[%clk 00:00:09]} {[%emt 00:00:01]} 49. Rf3 {[%clk 00:00:08]}
{[%emt 00:00:01]} Rc2+ {[%clk 00:00:10]} 50. Kg3 {[%clk 00:00:09]} {[%emt
00:00:01]} Rc3 {[%clk 00:00:11]} 51. Rxc3 {[%clk 00:00:10]} {[%emt 00:00:02]}
Kxc3 {[%clk 00:00:12]} {[%emt 00:00:01]} 52. Kf4 {[%clk 00:00:11]} Kxb3 {[%emt
00:00:02]} 53. g4 Kc3 {[%clk 00:00:13]} {[%emt 00:00:01]} 54. h4 b4 {[%emt
00:00:01]} 55. g5 {[%emt 00:00:01]} b3 56. gxh6 {[%clk 00:00:10]} {[%emt
00:00:02]} b2 {[%clk 00:00:11]} 57. h5 {[%clk 00:00:11]} {[%emt 00:00:05]} b1=Q
58. h7 Qxh7 0-1

[Event "Blixt-SM 2021"]
[Site "Elite Hotel Marina Plaza, Kungstorget 6, Helsingborg, Sweden"]
[Date "2021.11.14"]
[Round "4.6"]
[White "Frisk, Ellinor"]
[Black "Hansen, Anders"]
[Result "1-0"]
[TimeControl "3 minutes + 2 seconds per move."]
[WhiteTitle "WIM"]
[WhiteFideId "1708481"]
[BlackFideId "1708155"]
[WhiteElo "2142"]
[BlackElo "2027"]

1. Nf3 {[%clk 00:03:02]} {[%emt 00:00:02]} d5 {[%clk 00:02:58]} {[%emt
00:00:07]} 2. c4 {[%clk 00:03:02]} {[%emt 00:00:02]} d4 {[%clk 00:02:46]}
{[%emt 00:00:14]} 3. b4 {[%clk 00:03:03]} {[%emt 00:00:02]} f6 {[%clk
00:02:45]} {[%emt 00:00:02]} 4. Na3 {[%clk 00:02:59]} {[%emt 00:00:06]} e5
{[%clk 00:02:46]} {[%emt 00:00:02]} 5. Nc2 {[%clk 00:03:00]} a5 {[%clk
00:02:43]} {[%emt 00:00:04]} 6. b5 {[%clk 00:02:56]} {[%emt 00:00:05]} Be6
{[%clk 00:02:35]} {[%emt 00:00:11]} 7. d3 {[%clk 00:02:52]} {[%emt 00:00:06]}
Nd7 {[%clk 00:02:34]} {[%emt 00:00:03]} 8. g3 {[%clk 00:02:51]} {[%emt
00:00:03]} Bd6 {[%clk 00:02:23]} {[%emt 00:00:13]} 9. Bg2 {[%clk 00:02:51]}
{[%emt 00:00:01]} Nc5 {[%clk 00:02:22]} {[%emt 00:00:04]} 10. Nd2 {[%clk
00:02:37]} {[%emt 00:00:16]} Ne7 {[%clk 00:02:16]} {[%emt 00:00:08]} 11. O-O
{[%clk 00:02:37]} {[%emt 00:00:02]} O-O {[%clk 00:02:15]} {[%emt 00:00:02]} 12.
Ne4 {[%clk 00:02:28]} {[%emt 00:00:12]} Rb8 {[%clk 00:02:06]} {[%emt 00:00:11]}
13. Nxc5 {[%clk 00:02:22]} {[%emt 00:00:08]} Bxc5 {[%clk 00:02:06]} {[%emt
00:00:01]} 14. Bd2 {[%clk 00:01:57]} {[%emt 00:00:27]} b6 {[%clk 00:01:49]}
{[%emt 00:00:20]} 15. f4 {[%clk 00:01:39]} {[%emt 00:00:20]} Qd7 {[%clk
00:01:33]} {[%emt 00:00:18]} 16. Kh1 {[%clk 00:01:35]} {[%emt 00:00:05]} Nf5
{[%clk 00:01:18]} {[%emt 00:00:18]} 17. Qe1 {[%clk 00:01:11]} {[%emt 00:00:25]}
Kh8 {[%clk 00:01:08]} {[%emt 00:00:12]} 18. Rd1 {[%clk 00:01:11]} {[%emt
00:00:04]} exf4 {[%clk 00:00:42]} {[%emt 00:00:27]} 19. Bxf4 {[%clk 00:01:11]}
{[%emt 00:00:02]} Rbd8 {[%clk 00:00:27]} {[%emt 00:00:16]} 20. Bc6 {[%clk
00:01:02]} {[%emt 00:00:11]} Qf7 {[%clk 00:00:24]} {[%emt 00:00:05]} 21. Be4
{[%clk 00:00:39]} {[%emt 00:00:25]} Ne3 {[%clk 00:00:12]} {[%emt 00:00:14]} 22.
Nxe3 {[%clk 00:00:40]} {[%emt 00:00:01]} dxe3 {[%clk 00:00:12]} {[%emt
00:00:01]} 23. Rf3 {[%clk 00:00:14]} {[%emt 00:00:28]} f5 {[%clk 00:00:07]}
{[%emt 00:00:07]} 24. Bc6 {[%clk 00:00:12]} {[%emt 00:00:03]} Bd4 {[%clk
00:00:04]} {[%emt 00:00:06]} 25. Bxe3 {[%clk 00:00:12]} {[%emt 00:00:03]} Qf6
{[%clk 00:00:04]} 26. Qf2 {[%clk 00:00:11]} {[%emt 00:00:03]} Bxe3 {[%clk
00:00:04]} {[%emt 00:00:02]} 27. Qxe3 {[%clk 00:00:10]} {[%emt 00:00:03]} 1-0

[Event "Blixt-SM 2021"]
[Site "Elite Hotel Marina Plaza, Kungstorget 6, Helsingborg, Sweden"]
[Date "2021.11.14"]
[Round "6.4"]
[White "Nilsson, Patrik"]
[Black "Troedsson, Anton"]
[Result "1-0"]
[TimeControl "3 minutes + 2 seconds per move."]
[WhiteFideId "1708171"]
[BlackFideId "1746006"]
[WhiteElo "2143"]
[BlackElo "2104"]

1. d4 {[%clk 00:03:02]} {[%emt 00:00:01]} d5 {[%clk 00:03:03]} {[%emt
00:00:01]} 2. Bf4 {[%clk 00:03:03]} {[%emt 00:00:01]} Nf6 {[%clk 00:03:02]}
{[%emt 00:00:04]} 3. e3 {[%clk 00:03:04]} {[%emt 00:00:01]} c5 {[%clk
00:03:03]} 4. c3 {[%clk 00:03:05]} Qb6 {[%clk 00:03:03]} {[%emt 00:00:02]} 5.
Qb3 {[%clk 00:03:06]} {[%emt 00:00:01]} c4 {[%clk 00:03:04]} 6. Qc2 {[%clk
00:03:04]} {[%emt 00:00:03]} Nc6 {[%clk 00:03:05]} 7. Nd2 {[%clk 00:03:00]}
{[%emt 00:00:07]} g6 {[%clk 00:03:04]} {[%emt 00:00:03]} 8. e4 {[%clk
00:02:59]} {[%emt 00:00:03]} Nxe4 {[%clk 00:03:05]} {[%emt 00:00:01]} 9. Nxe4
{[%clk 00:02:55]} {[%emt 00:00:06]} Bf5 {[%clk 00:03:06]} 10. f3 {[%clk
00:02:44]} {[%emt 00:00:13]} h5 {[%clk 00:03:06]} {[%emt 00:00:01]} 11. Qe2
{[%clk 00:02:24]} {[%emt 00:00:23]} dxe4 {[%clk 00:03:04]} {[%emt 00:00:04]} 12.
fxe4 {[%clk 00:02:24]} {[%emt 00:00:02]} Bg4 {[%clk 00:03:00]} {[%emt
00:00:05]} 13. Qxc4 {[%clk 00:02:18]} {[%emt 00:00:08]} e5 {[%clk 00:02:51]}
{[%emt 00:00:11]} 14. Be3 {[%clk 00:01:44]} {[%emt 00:00:36]} Qxb2 {[%clk
00:02:45]} {[%emt 00:00:08]} 15. Rc1 {[%clk 00:01:30]} {[%emt 00:00:16]} exd4
{[%clk 00:02:46]} {[%emt 00:00:01]} 16. Bd2 {[%clk 00:01:04]} {[%emt 00:00:28]}
O-O-O {[%clk 00:02:02]} {[%emt 00:00:46]} 17. Ne2 {[%clk 00:00:48]} {[%emt
00:00:18]} b5 {[%clk 00:01:31]} {[%emt 00:00:32]} 18. Qxc6+ {[%clk 00:00:41]}
{[%emt 00:00:10]} Kb8 {[%clk 00:01:26]} {[%emt 00:00:08]} 19. Nxd4 {[%clk
00:00:40]} {[%emt 00:00:02]} Bd6 {[%clk 00:01:11]} {[%emt 00:00:17]} 20. Qxb5+
{[%clk 00:00:38]} {[%emt 00:00:04]} Qxb5 {[%clk 00:01:11]} 21. Nxb5 {[%clk
00:00:39]} {[%emt 00:00:03]} Bc5 {[%clk 00:01:10]} 22. Be2 {[%clk 00:00:36]}
{[%emt 00:00:08]} Be6 {[%clk 00:01:07]} 23. a4 {[%clk 00:00:28]} {[%emt
00:00:15]} Kb7 {[%clk 00:00:56]} {[%emt 00:00:13]} 24. e5 {[%clk 00:00:26]}
{[%emt 00:00:04]} Bd5 {[%clk 00:00:54]} {[%emt 00:00:03]} 25. Bf3 {[%clk
00:00:27]} Bxf3 {[%clk 00:00:52]} {[%emt 00:00:05]} 26. gxf3 {[%clk 00:00:28]}
{[%emt 00:00:01]} Rd3 {[%clk 00:00:49]} {[%emt 00:00:04]} 27. Ke2 {[%clk
00:00:22]} {[%emt 00:00:08]} Rd5 {[%clk 00:00:49]} {[%emt 00:00:02]} 28. f4
{[%clk 00:00:22]} {[%emt 00:00:02]} Rhd8 {[%clk 00:00:50]} {[%emt 00:00:01]} 29.
Rhd1 {[%clk 00:00:18]} {[%emt 00:00:05]} h4 {[%clk 00:00:44]} {[%emt 00:00:08]}
30. Nd4 {[%clk 00:00:17]} {[%emt 00:00:03]} Re8 {[%clk 00:00:40]} {[%emt
00:00:07]} 31. Be3 {[%clk 00:00:15]} {[%emt 00:00:03]} g5 {[%clk 00:00:39]}
{[%emt 00:00:03]} 32. Rb1+ {[%clk 00:00:15]} {[%emt 00:00:02]} Kc8 {[%clk
00:00:40]} {[%emt 00:00:02]} 33. Nf5 {[%clk 00:00:08]} {[%emt 00:00:09]} Rxd1
{[%clk 00:00:39]} {[%emt 00:00:02]} 34. Rxd1 {[%clk 00:00:08]} {[%emt
00:00:02]} Bxe3 {[%clk 00:00:38]} {[%emt 00:00:03]} 35. Kxe3 {[%clk 00:00:09]}
Kc7 {[%clk 00:00:36]} {[%emt 00:00:05]} 36. Ke4 {[%clk 00:00:10]} f6 {[%clk
00:00:36]} {[%emt 00:00:02]} 37. Rd6 {[%emt 00:00:05]} gxf4 {[%clk 00:00:34]}
{[%emt 00:00:03]} 38. e6 {[%clk 00:00:08]} {[%emt 00:00:02]} f3 {[%clk
00:00:33]} {[%emt 00:00:03]} 39. Kxf3 {[%clk 00:00:09]} {[%emt 00:00:01]} Rg8
{[%clk 00:00:32]} {[%emt 00:00:02]} 40. Rd7+ {[%clk 00:00:10]} {[%emt
00:00:01]} Kc6 {[%emt 00:00:01]} 41. Rg7 Re8 {[%clk 00:00:34]} {[%emt
00:00:02]} 42. e7 {[%clk 00:00:14]} {[%emt 00:00:01]} Kd7 {[%clk 00:00:33]}
{[%emt 00:00:03]} 43. Rf7 {[%clk 00:00:14]} {[%emt 00:00:02]} Ke6 {[%clk
00:00:34]} {[%emt 00:00:01]} 44. Rf8 {[%clk 00:00:15]} Rxe7 {[%clk 00:00:34]}
{[%emt 00:00:02]} 45. Nxe7 {[%clk 00:00:14]} {[%emt 00:00:03]} 1-0

[Event "Blixt-SM 2021"]
[Site "Elite Hotel Marina Plaza, Kungstorget 6, Helsingborg, Sweden"]
[Date "2021.11.14"]
[Round "8.2"]
[White "Storme, Isak"]
[Black "Svensson, Mikael"]
[Result "1-0"]
[TimeControl "3 minutes + 2 seconds per move."]
[WhiteTitle "FM"]
[WhiteFideId "1728113"]
[BlackFideId "1716433"]
[WhiteElo "2037"]
[BlackElo "2073"]

1. d4 {[%clk 00:03:03]} e6 {[%clk 00:03:04]} {[%emt 00:00:01]} 2. Bf4 {[%clk
00:03:03]} {[%emt 00:00:01]} f5 {[%clk 00:03:04]} {[%emt 00:00:02]} 3. Nc3
{[%clk 00:03:00]} {[%emt 00:00:05]} Nf6 {[%clk 00:03:04]} {[%emt 00:00:02]} 4.
e3 {[%clk 00:02:51]} {[%emt 00:00:10]} Bb4 {[%clk 00:03:01]} {[%emt 00:00:06]}
5. Nge2 {[%clk 00:02:45]} {[%emt 00:00:08]} b6 {[%clk 00:02:47]} {[%emt
00:00:16]} 6. a3 {[%clk 00:02:45]} {[%emt 00:00:02]} Be7 {[%clk 00:02:48]} 7.
Ng3 {[%clk 00:02:37]} {[%emt 00:00:10]} Bb7 {[%clk 00:02:47]} {[%emt 00:00:04]}
8. f3 {[%clk 00:02:33]} {[%emt 00:00:05]} O-O {[%clk 00:02:33]} {[%emt
00:00:16]} 9. Bc4 {[%clk 00:02:25]} {[%emt 00:00:09]} d5 {[%clk 00:02:08]}
{[%emt 00:00:28]} 10. Be2 {[%clk 00:02:14]} {[%emt 00:00:13]} c5 {[%clk
00:02:07]} {[%emt 00:00:04]} 11. O-O {[%clk 00:02:11]} {[%emt 00:00:04]} Nc6
{[%clk 00:02:08]} {[%emt 00:00:02]} 12. Kh1 {[%clk 00:01:59]} {[%emt 00:00:14]}
Rc8 {[%clk 00:01:48]} {[%emt 00:00:22]} 13. Bb5 {[%clk 00:01:27]} {[%emt
00:00:34]} Bd6 {[%clk 00:01:41]} {[%emt 00:00:08]} 14. Bxd6 {[%clk 00:01:23]}
{[%emt 00:00:06]} Qxd6 {[%clk 00:01:42]} 15. Bxc6 {[%clk 00:01:07]} {[%emt
00:00:18]} Bxc6 {[%clk 00:01:42]} {[%emt 00:00:03]} 16. Re1 {[%clk 00:01:01]}
{[%emt 00:00:07]} h5 {[%clk 00:01:24]} {[%emt 00:00:21]} 17. Nge2 {[%clk
00:00:58]} {[%emt 00:00:05]} e5 {[%clk 00:01:14]} {[%emt 00:00:12]} 18. dxe5
{[%clk 00:00:48]} {[%emt 00:00:12]} Qxe5 {[%clk 00:01:15]} {[%emt 00:00:01]} 19.
Nf4 {[%clk 00:00:44]} {[%emt 00:00:05]} Kh7 {[%clk 00:00:59]} {[%emt 00:00:19]}
20. Nd3 {[%clk 00:00:38]} {[%emt 00:00:08]} Qe6 {[%clk 00:00:52]} {[%emt
00:00:09]} 21. Ne2 {[%clk 00:00:32]} {[%emt 00:00:07]} g5 {[%clk 00:00:50]}
{[%emt 00:00:04]} 22. f4 {[%clk 00:00:26]} {[%emt 00:00:09]} g4 {[%clk
00:00:35]} {[%emt 00:00:17]} 23. Ne5 {[%clk 00:00:26]} {[%emt 00:00:01]} Ne4
{[%clk 00:00:35]} {[%emt 00:00:02]} 24. Rf1 {[%clk 00:00:26]} {[%emt 00:00:02]}
Kg7 {[%clk 00:00:29]} {[%emt 00:00:08]} 25. Nc3 {[%clk 00:00:26]} {[%emt
00:00:02]} h4 {[%clk 00:00:25]} {[%emt 00:00:07]} 26. Nxe4 {[%clk 00:00:27]}
{[%emt 00:00:01]} dxe4 {[%clk 00:00:23]} {[%emt 00:00:03]} 27. Qe2 {[%clk
00:00:26]} {[%emt 00:00:03]} Rcd8 {[%clk 00:00:21]} {[%emt 00:00:05]} 28. Rad1
{[%clk 00:00:26]} {[%emt 00:00:02]} Bb7 {[%clk 00:00:08]} {[%emt 00:00:15]} 29.
Rd2 {[%clk 00:00:19]} {[%emt 00:00:09]} Rxd2 {[%clk 00:00:08]} {[%emt
00:00:03]} 30. Qxd2 {[%clk 00:00:19]} Qd5 {[%clk 00:00:07]} {[%emt 00:00:02]}
31. Rd1 {[%clk 00:00:19]} {[%emt 00:00:02]} Rd8 {[%clk 00:00:07]} {[%emt
00:00:03]} 32. Qxd5 {[%clk 00:00:14]} {[%emt 00:00:06]} Rxd5 {[%clk 00:00:09]}
33. Rxd5 {[%clk 00:00:12]} {[%emt 00:00:04]} Bxd5 {[%clk 00:00:10]} 34. Kg1
{[%clk 00:00:11]} {[%emt 00:00:02]} Kf6 {[%clk 00:00:10]} {[%emt 00:00:02]} 35.
Kf2 {[%clk 00:00:11]} {[%emt 00:00:01]} Ke6 {[%clk 00:00:10]} {[%emt 00:00:03]}
36. Ke1 {[%clk 00:00:11]} {[%emt 00:00:02]} a5 {[%clk 00:00:11]} {[%emt
00:00:03]} 37. Kd2 {[%clk 00:00:08]} {[%emt 00:00:04]} Bb7 {[%clk 00:00:12]} 38.
Kc3 {[%clk 00:00:05]} {[%emt 00:00:05]} b5 {[%clk 00:00:12]} {[%emt 00:00:01]}
39. b4 {[%clk 00:00:05]} {[%emt 00:00:02]} axb4+ {[%clk 00:00:12]} {[%emt
00:00:03]} 40. axb4 {[%clk 00:00:06]} c4 {[%clk 00:00:13]} {[%emt 00:00:01]} 41.
Kd4 {[%clk 00:00:06]} {[%emt 00:00:02]} Kd6 {[%clk 00:00:11]} {[%emt 00:00:04]}
42. c3 {[%clk 00:00:06]} {[%emt 00:00:02]} Bc8 {[%clk 00:00:11]} {[%emt
00:00:02]} 43. Ng6 {[%clk 00:00:06]} {[%emt 00:00:02]} h3 {[%clk 00:00:11]}
{[%emt 00:00:02]} 44. g3 {[%clk 00:00:06]} {[%emt 00:00:02]} Bd7 {[%clk
00:00:11]} {[%emt 00:00:02]} 45. Ne5 {[%clk 00:00:06]} {[%emt 00:00:01]} Bc8
{[%clk 00:00:13]} 46. Nf7+ {[%clk 00:00:06]} {[%emt 00:00:02]} Ke7 {[%clk
00:00:12]} {[%emt 00:00:02]} 47. Ng5 {[%clk 00:00:06]} {[%emt 00:00:02]} Kd6
{[%clk 00:00:13]} {[%emt 00:00:01]} 48. Nh7 {[%clk 00:00:06]} {[%emt 00:00:02]}
Bd7 {[%clk 00:00:13]} {[%emt 00:00:03]} 49. Nf6 {[%clk 00:00:06]} {[%emt
00:00:02]} Be8 {[%clk 00:00:14]} {[%emt 00:00:01]} 50. Nxe8+ {[%clk 00:00:06]}
{[%emt 00:00:02]} 1-0

[Event "Blixt-SM 2021"]
[Site "Elite Hotel Marina Plaza, Kungstorget 6, Helsingborg, Sweden"]
[Date "2021.11.14"]
[Round "9.9"]
[White "Khalat, Havras"]
[Black "Neretljak, Nedzad"]
[Result "0-1"]
[TimeControl "3 minutes + 2 seconds per move."]
[WhiteFideId "1725017"]
[BlackFideId "1713132"]
[WhiteElo "1793"]
[BlackElo "2148"]

1. d4 {[%clk 00:03:02]} e6 {[%clk 00:03:03]} {[%emt 00:00:01]} 2. Nf3 {[%clk
00:03:03]} h6 {[%clk 00:03:03]} {[%emt 00:00:02]} 3. e3 {[%clk 00:03:04]}
{[%emt 00:00:01]} Nf6 {[%clk 00:03:03]} {[%emt 00:00:02]} 4. c4 {[%clk
00:03:05]} {[%emt 00:00:01]} d5 {[%clk 00:03:00]} {[%emt 00:00:04]} 5. Nc3
{[%clk 00:03:06]} {[%emt 00:00:01]} c6 {[%clk 00:03:01]} 6. Be2 {[%clk
00:03:06]} {[%emt 00:00:02]} Bd6 {[%clk 00:03:02]} 7. O-O {[%clk 00:03:06]}
{[%emt 00:00:02]} Nbd7 {[%clk 00:03:03]} {[%emt 00:00:02]} 8. b3 {[%clk
00:03:06]} {[%emt 00:00:02]} b6 {[%clk 00:02:57]} {[%emt 00:00:07]} 9. Bb2
{[%clk 00:03:07]} Bb7 {[%clk 00:02:59]} 10. Rc1 {[%clk 00:03:08]} {[%emt
00:00:02]} O-O {[%clk 00:02:58]} {[%emt 00:00:02]} 11. cxd5 {[%clk 00:03:08]}
{[%emt 00:00:02]} exd5 {[%clk 00:02:57]} {[%emt 00:00:03]} 12. h3 {[%clk
00:03:08]} {[%emt 00:00:02]} Re8 {[%clk 00:02:57]} {[%emt 00:00:01]} 13. Re1
{[%clk 00:03:05]} {[%emt 00:00:05]} Ne4 {[%clk 00:02:57]} {[%emt 00:00:02]} 14.
Bd3 {[%clk 00:02:56]} {[%emt 00:00:10]} f5 {[%clk 00:02:53]} {[%emt 00:00:07]}
15. Qe2 {[%clk 00:02:37]} {[%emt 00:00:21]} Qf6 {[%clk 00:02:53]} {[%emt
00:00:02]} 16. a3 {[%clk 00:02:26]} {[%emt 00:00:14]} Re7 {[%clk 00:02:48]}
{[%emt 00:00:07]} 17. b4 {[%clk 00:02:26]} {[%emt 00:00:02]} a6 {[%clk
00:02:47]} {[%emt 00:00:02]} 18. Na4 {[%clk 00:01:47]} {[%emt 00:00:41]} g5
{[%clk 00:02:47]} {[%emt 00:00:02]} 19. Bxe4 {[%clk 00:01:35]} {[%emt
00:00:14]} fxe4 {[%clk 00:02:46]} {[%emt 00:00:03]} 20. Ne5 {[%clk 00:01:32]}
{[%emt 00:00:05]} Nxe5 {[%clk 00:02:27]} {[%emt 00:00:21]} 21. dxe5 {[%clk
00:01:32]} {[%emt 00:00:03]} Bxe5 {[%clk 00:02:26]} {[%emt 00:00:03]} 22. Bxe5
{[%clk 00:01:31]} {[%emt 00:00:03]} Rxe5 {[%clk 00:02:25]} {[%emt 00:00:03]} 23.
Nxb6 {[%clk 00:01:31]} {[%emt 00:00:02]} Rd8 {[%clk 00:02:22]} {[%emt
00:00:05]} 24. Na4 {[%clk 00:01:26]} {[%emt 00:00:07]} Rf5 {[%clk 00:02:21]}
{[%emt 00:00:03]} 25. Nc5 {[%clk 00:01:24]} {[%emt 00:00:04]} Bc8 {[%clk
00:02:22]} 26. a4 {[%clk 00:01:20]} {[%emt 00:00:07]} Rf8 {[%clk 00:02:22]}
{[%emt 00:00:01]} 27. Rf1 {[%clk 00:01:20]} {[%emt 00:00:02]} Rf3 {[%clk
00:02:10]} {[%emt 00:00:14]} 28. b5 {[%clk 00:00:58]} {[%emt 00:00:25]} axb5
{[%clk 00:02:10]} {[%emt 00:00:02]} 29. axb5 {[%clk 00:00:59]} cxb5 {[%clk
00:02:07]} {[%emt 00:00:05]} 30. Rb1 {[%clk 00:00:56]} {[%emt 00:00:04]} Bxh3
{[%clk 00:02:01]} {[%emt 00:00:08]} 31. gxh3 {[%clk 00:00:51]} {[%emt
00:00:07]} Qf5 {[%clk 00:02:02]} {[%emt 00:00:01]} 32. Qxf3 {[%clk 00:00:22]}
{[%emt 00:00:30]} exf3 {[%clk 00:02:00]} {[%emt 00:00:05]} 33. Kh2 {[%clk
00:00:13]} {[%emt 00:00:10]} Qe5+ {[%clk 00:01:59]} {[%emt 00:00:04]} 34. Kg1
{[%clk 00:00:08]} {[%emt 00:00:07]} g4 {[%clk 00:02:00]} {[%emt 00:00:02]} 35.
Kh1 {[%clk 00:00:05]} {[%emt 00:00:05]} Qh5 {[%clk 00:01:59]} {[%emt 00:00:02]}
36. Rg1 {[%clk 00:00:05]} {[%emt 00:00:02]} Qxh3# {[%clk 00:01:59]} {[%emt
00:00:02]} 0-1